[Event "Reykjavik Open 2025"]
[Site "Reykjavik, Iceland"]
[Date "2025.04.12"]
[Round "5.34"]
[White "Saine, Zachary"]
[Black "Khaledi, Omid"]
[Result "1/2-1/2"]
[WhiteElo "2019"]
[WhiteFideId "2624346"]
[BlackElo "2228"]
[BlackFideId "22514635"]
[TimeControl "90+30 +30 after 40 moves"]
[Variant "Standard"]
[ECO "B40"]
[Opening "Sicilian Defense: Four Knights Variation, Exchange Variation"]
[StudyName "Round 5"]
1. e4 { [%clk 1:30:58] } 1... c5 { [%clk 1:24:27] } 2. Nf3 { [%clk 1:31:17] } 2... e6 { [%clk 1:24:45] } 3. d4 { [%clk 1:31:36] } 3... cxd4 { [%clk 1:25:08] } 4. Nxd4 { [%clk 1:32:00] } 4... Nf6 { [%clk 1:25:32] } 5. Nc3 { [%clk 1:32:22] } 5... Nc6 { [%clk 1:25:55] } 6. Nxc6 { [%clk 1:32:36] } 6... bxc6 { [%clk 1:26:19] } 7. e5 { [%clk 1:32:56] } 7... Nd5 { [%clk 1:26:46] } 8. Ne4 { [%clk 1:33:17] } 8... Qc7 { [%clk 1:26:14] } 9. f4 { [%clk 1:33:39] } 9... Qb6 { [%clk 1:26:39] } 10. c4 { [%clk 1:34:03] } 10... Bb4+ { [%clk 1:26:23] } 11. Ke2 { [%clk 1:34:14] } 11... Ba6 { [%clk 1:25:33] } 12. Kf3 { [%clk 1:34:34] } 12... f5 { [%clk 1:25:52] } 13. exf6 { [%clk 1:34:54] } 13... Nxf6 { [%clk 1:26:10] } 14. c5 { [%clk 1:34:12] } 14... Bxc5 { [%clk 1:17:39] } 15. Nxc5 { [%clk 1:34:11] } 15... Bxf1 { [%clk 1:04:09] } 16. Na4 { [%clk 1:34:16] } 16... Qb5 { [%clk 0:39:38] } 17. Rxf1 { [%clk 1:34:04] } 17... Qh5+ { [%clk 0:38:27] } 18. Kf2 { [%clk 1:34:05] } 18... Ng4+ { [%clk 0:38:22] } 19. Ke1 { [%clk 1:34:08] } 19... O-O { [%clk 0:37:41] } 20. h3 { [%clk 1:11:20] } 20... Qh4+ { [%clk 0:37:28] } 21. Ke2 { [%clk 1:06:15] } 21... Nh2 { [%clk 0:31:17] } 22. Rh1 { [%clk 1:00:55] } 22... e5 { [%clk 0:29:37] } 23. f5 { [%clk 0:32:21] } 23... Rxf5 { [%clk 0:20:44] } 24. Be3 { [%clk 0:12:31] } 24... Raf8 { [%clk 0:16:23] } 25. Qb3+ { [%clk 0:09:40] } 25... d5 { [%clk 0:16:46] } 26. Rae1 { [%clk 0:09:31] } 26... Qe4 { [%clk 0:03:16] } 27. Rxh2 { [%clk 0:05:57] } 27... Rf2+ { [%clk 0:03:39] } 28. Kd1 { [%clk 0:06:22] } 28... Qb1+ { [%clk 0:03:58] } 29. Bc1 { [%clk 0:06:47] } 29... R8f4 { [%clk 0:04:22] } 30. Qb8+ { [%clk 0:03:34] } 30... Rf8 { [%clk 0:04:34] } 31. Qb3 { [%clk 0:03:55] } 31... R8f4 { [%clk 0:01:57] } 32. Qb8+ { [%clk 0:03:05] } 32... Rf8 { [%clk 0:02:17] } 33. Qb3 { [%clk 0:01:31] } 33... h6 { [%clk 0:02:15] } 34. Nc5 { [%clk 0:01:19] } 34... R8f4 { [%clk 0:02:14] } 1/2-1/2

[Event "Reykjavik Open 2025"]
[Site "Reykjavik, Iceland"]
[Date "2025.04.13"]
[Round "6.1"]
[White "Maghsoodloo, Parham"]
[Black "Muradli, Mahammad"]
[Result "1-0"]
[WhiteElo "2684"]
[WhiteTitle "GM"]
[WhiteFideId "12539929"]
[BlackElo "2588"]
[BlackTitle "GM"]
[BlackFideId "13409301"]
[TimeControl "90+30 +30 after 40 moves"]
[Variant "Standard"]
[ECO "B90"]
[Opening "Sicilian Defense: Najdorf Variation, English Attack"]
[StudyName "Round 6"]
1. e4 { [%clk 1:30:58] } 1... c5 { [%clk 1:23:18] } 2. Nf3 { [%clk 1:31:23] } 2... d6 { [%clk 1:23:39] } 3. d4 { [%clk 1:31:45] } 3... cxd4 { [%clk 1:24:03] } 4. Nxd4 { [%clk 1:32:09] } 4... Nf6 { [%clk 1:24:20] } 5. Nc3 { [%clk 1:32:32] } 5... a6 { [%clk 1:24:37] } 6. Be3 { [%clk 1:32:54] } 6... e5 { [%clk 1:24:42] } 7. Nf3 { [%clk 1:33:16] } 7... Be7 { [%clk 1:24:46] } 8. Bc4 { [%clk 1:33:34] } 8... O-O { [%clk 1:24:41] } 9. Bb3 { [%clk 1:30:43] } 9... Nc6 { [%clk 1:15:36] } 10. Qe2 { [%clk 1:29:23] } 10... Na5 { [%clk 1:09:23] } 11. Bg5 { [%clk 1:05:30] } 11... Nxb3 { [%clk 1:05:18] } 12. axb3 { [%clk 1:05:28] } 12... Ne8 { [%clk 1:05:21] } 13. Bxe7 { [%clk 0:57:28] } 13... Qxe7 { [%clk 1:05:49] } 14. Nd5 { [%clk 0:57:51] } 14... Qd8 { [%clk 1:06:00] } 15. O-O { [%clk 0:58:14] } 15... f5 { [%clk 0:53:54] } 16. Rfd1 { [%clk 0:50:27] } 16... f4 { [%clk 0:43:01] } 17. c4 { [%clk 0:43:05] } 17... Bg4 { [%clk 0:38:35] } 18. h3 { [%clk 0:38:30] } 18... Bh5 { [%clk 0:38:34] } 19. b4 { [%clk 0:36:54] } 19... Kh8 { [%clk 0:34:41] } 20. c5 { [%clk 0:34:16] } 20... Rc8 { [%clk 0:34:13] } 21. Ra3 { [%clk 0:26:00] } 21... Rc6 { [%clk 0:29:22] } 22. Rad3 { [%clk 0:15:47] } 22... g5 { [%clk 0:24:02] } 23. b3 { [%clk 0:12:20] } 23... Qd7 { [%clk 0:13:37] } 24. cxd6 { [%clk 0:03:08] } 24... Rxd6 { [%clk 0:10:40] } 25. Qb2 { [%clk 0:03:19] } 25... Qg7 { [%clk 0:10:41] } 26. Rc1 { [%clk 0:03:03] } 26... Re6 { [%clk 0:06:05] } 27. Rc8 { [%clk 0:02:04] } 27... g4 { [%clk 0:06:15] } 28. hxg4 { [%clk 0:01:21] } 28... Bxg4 { [%clk 0:06:43] } 29. Nh2 { [%clk 0:01:47] } 29... Bh5 { [%clk 0:04:37] } 30. f3 { [%clk 0:00:44] } 30... Rg8 { [%clk 0:03:55] } 31. Rd2 { [%clk 0:00:40] } 31... Rg6 { [%clk 0:02:43] } 32. Nc7 { [%clk 0:00:36] } 32... Nd6 { [%clk 0:00:34] } 33. Rxg8+ { [%clk 0:01:01] } 33... Kxg8 { [%clk 0:01:03] } 34. Qc2 { [%clk 0:00:53] } 34... h6 { [%clk 0:01:08] } 35. Qc5 { [%clk 0:00:36] } 35... Kh7 { [%clk 0:00:49] } 36. Ne6 { [%clk 0:00:35] } 36... Rxe6 { [%clk 0:00:34] } 37. Rxd6 { [%clk 0:00:59] } 37... Rg6 { [%clk 0:00:32] } 38. Rxg6 { [%clk 0:01:11] } 38... Kxg6 { [%clk 0:00:53] } 39. Nf1 { [%clk 0:01:10] } 39... Kh7 { [%clk 0:00:59] } 40. Nd2 { [%clk 0:01:03] } 40... Bf7 { [%clk 0:00:59] } 41. Qb6 { [%clk 0:00:34] } 41... Bg8 { [%clk 0:00:49] } 42. Nc4 { [%clk 0:00:34] } 42... Bxc4 { [%clk 0:27:49] } 43. bxc4 { [%clk 0:28:08] } 43... Qe7 { [%clk 0:25:01] } 44. Qa5 { [%clk 0:16:22] } 44... Qd6 { [%clk 0:20:56] } 45. Kh2 { [%clk 0:12:36] } 45... Qe7 { [%clk 0:20:22] } 46. Qa1 { [%clk 0:11:39] } 46... Kg6 { [%clk 0:18:59] } 47. c5 { [%clk 0:11:44] } 47... Qh4+ { [%clk 0:15:46] } 48. Kg1 { [%clk 0:12:02] } 48... Kf7 { [%clk 0:15:45] } 49. Qc3 { [%clk 0:11:20] } 49... h5 { [%clk 0:14:24] } 50. Qa1 { [%clk 0:10:26] } 50... Kg6 { [%clk 0:07:04] } 51. Qd1 { [%clk 0:10:23] } 51... Qe7 { [%clk 0:07:29] } 52. Qd5 { [%clk 0:09:14] } 52... Kg5 { [%clk 0:07:39] } 53. Qg8+ { [%clk 0:08:56] } 53... Kh4 { [%clk 0:06:30] } 54. Qg6 { [%clk 0:06:26] } 54... Qg5 { [%clk 0:01:43] } 55. Qf7 { [%clk 0:05:55] } 55... Qd8 { [%clk 0:01:02] } 56. Qg7 { [%clk 0:05:36] } 56... Qg5 { [%clk 0:00:32] } 57. Qxb7 { [%clk 0:05:38] } 57... a5 { [%clk 0:00:43] } 58. Qd7 { [%clk 0:05:45] } 1-0

[Event "Reykjavik Open 2025"]
[Site "Reykjavik, Iceland"]
[Date "2025.04.13"]
[Round "6.6"]
[White "Gorshtein, Ido"]
[Black "Garifullina, Leya"]
[Result "1/2-1/2"]
[WhiteElo "2557"]
[WhiteTitle "GM"]
[WhiteFideId "2815532"]
[BlackElo "2459"]
[BlackTitle "IM"]
[BlackFideId "34127035"]
[TimeControl "90+30 +30 after 40 moves"]
[Variant "Standard"]
[ECO "A20"]
[Opening "English Opening: King's English Variation"]
[StudyName "Round 6"]
1. c4 { [%clk 1:28:26] } 1... e5 { [%clk 1:30:48] } 2. g3 { [%clk 1:28:48] } 2... c6 { [%clk 1:31:13] } 3. d4 { [%clk 1:29:04] } 3... e4 { [%clk 1:31:37] } 4. a3 { [%clk 1:29:28] } 4... d5 { [%clk 1:31:43] } 5. Nc3 { [%clk 1:29:48] } 5... Be7 { [%clk 1:26:26] } 6. Bg2 { [%clk 1:29:07] } 6... Nf6 { [%clk 1:25:20] } 7. f3 { [%clk 1:29:18] } 7... exf3 { [%clk 1:24:32] } 8. Nxf3 { [%clk 1:29:41] } 8... O-O { [%clk 1:23:47] } 9. O-O { [%clk 1:30:03] } 9... dxc4 { [%clk 1:15:46] } 10. e4 { [%clk 1:30:17] } 10... Bg4 { [%clk 1:15:22] } 11. Be3 { [%clk 1:29:27] } 11... Nbd7 { [%clk 1:14:15] } 12. h3 { [%clk 1:24:00] } 12... Bxf3 { [%clk 1:11:27] } 13. Qxf3 { [%clk 1:21:50] } 13... Ne8 { [%clk 1:09:45] } 14. h4 { [%clk 1:09:31] } 14... Nc7 { [%clk 1:01:52] } 15. Rad1 { [%clk 1:06:30] } 15... Qe8 { [%clk 0:56:44] } 16. Kh1 { [%clk 1:00:15] } 16... Rd8 { [%clk 0:54:32] } 17. Qg4 { [%clk 0:48:26] } 17... Kh8 { [%clk 0:51:15] } 18. h5 { [%clk 0:43:16] } 18... c5 { [%clk 0:46:23] } 19. h6 { [%clk 0:42:56] } 19... g6 { [%clk 0:46:30] } 20. e5 { [%clk 0:35:08] } 20... cxd4 { [%clk 0:45:07] } 21. e6 { [%clk 0:30:12] } 21... Nxe6 { [%clk 0:42:04] } 22. Bxd4+ { [%clk 0:30:33] } 22... Nxd4 { [%clk 0:41:56] } 23. Qxd4+ { [%clk 0:30:50] } 23... f6 { [%clk 0:41:14] } 24. Rde1 { [%clk 0:27:24] } 24... g5 { [%clk 0:35:17] } 25. Bd5 { [%clk 0:23:11] } 25... Bc5 { [%clk 0:32:07] } 26. Qxc4 { [%clk 0:22:54] } 26... Qh5+ { [%clk 0:29:48] } 27. Kg2 { [%clk 0:23:17] } 27... b6 { [%clk 0:27:19] } 28. Rh1 { [%clk 0:14:01] } 28... Qg6 { [%clk 0:27:14] } 29. Be4 { [%clk 0:12:54] } 29... Ne5 { [%clk 0:26:10] } 30. Qe2 { [%clk 0:13:00] } 30... f5 { [%clk 0:24:28] } 31. Bf3 { [%clk 0:08:50] } 31... Rfe8 { [%clk 0:21:44] } 32. Rd1 { [%clk 0:08:09] } 32... Rxd1 { [%clk 0:20:45] } 33. Qxd1 { [%clk 0:05:40] } 33... g4 { [%clk 0:16:39] } 34. Bd5 { [%clk 0:04:25] } 34... f4 { [%clk 0:16:22] } 35. gxf4 { [%clk 0:03:29] } 35... Nd3 { [%clk 0:16:37] } 36. Rf1 { [%clk 0:03:06] } 36... Re3 { [%clk 0:15:37] } 37. Be4 { [%clk 0:01:37] } 37... Qh5 { [%clk 0:15:44] } 38. Rh1 { [%clk 0:01:57] } 38... Nxf4+ { [%clk 0:16:08] } 39. Kf1 { [%clk 0:02:22] } 39... Rd3 { [%clk 0:09:13] } 40. Rxh5 { [%clk 0:01:01] } 40... Rxd1+ { [%clk 0:09:38] } 41. Nxd1 { [%clk 0:01:27] } 41... Nxh5 { [%clk 0:10:04] } 42. Kg2 { [%clk 0:29:49] } 42... Bd4 { [%clk 0:36:28] } 43. Bf5 { [%clk 0:28:22] } 43... Nf6 { [%clk 0:36:25] } 44. Nf2 { [%clk 0:22:25] } 44... Bxf2 { [%clk 0:32:06] } 45. Kxf2 { [%clk 0:22:49] } 45... Ng8 { [%clk 0:31:12] } 46. Bxg4 { [%clk 0:23:12] } 46... Nxh6 { [%clk 0:31:40] } 47. Bh3 { [%clk 0:22:33] } 47... Kg7 { [%clk 0:31:35] } 48. Ke3 { [%clk 0:22:57] } 48... Kf6 { [%clk 0:30:02] } 49. Ke4 { [%clk 0:22:20] } 49... Nf7 { [%clk 0:28:57] } 50. Kd5 { [%clk 0:22:24] } 50... Ne5 { [%clk 0:29:23] } 51. Bf1 { [%clk 0:19:01] } 51... h5 { [%clk 0:27:56] } 52. Kd6 { [%clk 0:19:24] } 52... h4 { [%clk 0:25:07] } 53. Kc7 { [%clk 0:18:35] } 53... Nf3 { [%clk 0:24:02] } 54. Kb7 { [%clk 0:17:37] } 54... Nd2 { [%clk 0:24:27] } 55. Bh3 { [%clk 0:17:16] } 55... Nc4 { [%clk 0:24:53] } 56. Kxa7 { [%clk 0:16:38] } 56... Nxb2 { [%clk 0:25:15] } 57. Bf1 { [%clk 0:16:03] } 57... Ke5 { [%clk 0:25:11] } 1/2-1/2

[Event "Reykjavik Open 2025"]
[Site "Reykjavik, Iceland"]
[Date "2025.04.13"]
[Round "6.9"]
[White "Papp, Gabor"]
[Black "Prraneeth Vuppala"]
[Result "1/2-1/2"]
[WhiteElo "2502"]
[WhiteTitle "GM"]
[WhiteFideId "718602"]
[BlackElo "2433"]
[BlackTitle "GM"]
[BlackFideId "46622373"]
[TimeControl "90+30 +30 after 40 moves"]
[Variant "Standard"]
[ECO "B56"]
[Opening "Sicilian Defense: Venice Attack"]
[StudyName "Round 6"]
1. e4 { [%clk 1:30:56] } 1... c5 { [%clk 1:27:23] } 2. Nf3 { [%clk 1:31:16] } 2... d6 { [%clk 1:27:44] } 3. d4 { [%clk 1:31:41] } 3... cxd4 { [%clk 1:28:06] } 4. Nxd4 { [%clk 1:32:07] } 4... Nf6 { [%clk 1:28:29] } 5. Nc3 { [%clk 1:32:30] } 5... e5 { [%clk 1:28:29] } 6. Bb5+ { [%clk 1:32:24] } 6... Nbd7 { [%clk 1:28:31] } 7. Nf5 { [%clk 1:31:24] } 7... a6 { [%clk 1:28:03] } 8. Ba4 { [%clk 1:30:45] } 8... b5 { [%clk 1:27:41] } 9. Bb3 { [%clk 1:31:11] } 9... Nc5 { [%clk 1:28:03] } 10. Bg5 { [%clk 1:30:45] } 10... Bxf5 { [%clk 1:27:46] } 11. exf5 { [%clk 1:31:09] } 11... Be7 { [%clk 1:28:06] } 12. Bxf6 { [%clk 1:27:32] } 12... Bxf6 { [%clk 1:28:25] } 13. Qf3 { [%clk 1:27:57] } 13... e4 { [%clk 1:26:58] } 14. Nxe4 { [%clk 1:25:38] } 14... Bxb2 { [%clk 1:26:52] } 15. Nxd6+ { [%clk 1:20:53] } 15... Qxd6 { [%clk 1:26:55] } 16. Qxa8+ { [%clk 1:20:10] } 16... Kd7 { [%clk 1:27:15] } 17. Qa7+ { [%clk 1:05:06] } 17... Kc6 { [%clk 1:27:21] } 18. O-O { [%clk 1:05:29] } 18... Bxa1 { [%clk 1:27:40] } 19. Rxa1 { [%clk 1:05:53] } 19... Rd8 { [%clk 1:26:56] } 20. c4 { [%clk 0:35:09] } 20... b4 { [%clk 1:13:31] } 21. Re1 { [%clk 0:30:18] } 21... Qd7 { [%clk 1:09:15] } 22. Ba4+ { [%clk 0:29:46] } 22... Nxa4 { [%clk 1:07:18] } 23. Qxa6+ { [%clk 0:30:12] } 23... Nb6 { [%clk 0:58:56] } 24. c5 { [%clk 0:30:33] } 24... Qb7 { [%clk 0:58:47] } 25. Qxb7+ { [%clk 0:18:34] } 25... Kxb7 { [%clk 0:59:14] } 26. cxb6 { [%clk 0:19:02] } 26... Rd2 { [%clk 0:55:39] } 27. g4 { [%clk 0:19:28] } 27... Rxa2 { [%clk 0:52:44] } 28. Re4 { [%clk 0:19:03] } 28... Ra4 { [%clk 0:37:20] } 29. g5 { [%clk 0:19:12] } 29... f6 { [%clk 0:28:10] } 30. g6 { [%clk 0:15:29] } 30... hxg6 { [%clk 0:28:34] } 31. fxg6 { [%clk 0:15:57] } 31... Kxb6 { [%clk 0:28:52] } 32. Kg2 { [%clk 0:16:24] } 32... Kc6 { [%clk 0:19:23] } 33. h4 { [%clk 0:14:03] } 33... Kd6 { [%clk 0:19:32] } 34. h5 { [%clk 0:12:29] } 34... Ra5 { [%clk 0:19:21] } 35. Rxb4 { [%clk 0:12:05] } 35... Ke5 { [%clk 0:19:04] } 1/2-1/2

[Event "Reykjavik Open 2025"]
[Site "Reykjavik, Iceland"]
[Date "2025.04.13"]
[Round "6.18"]
[White "Xu, Yuanyuan"]
[Black "Sivuk, Vitaly"]
[Result "0-1"]
[WhiteElo "2288"]
[WhiteTitle "WGM"]
[WhiteFideId "8601089"]
[BlackElo "2505"]
[BlackTitle "GM"]
[BlackFideId "14116502"]
[TimeControl "90+30 +30 after 40 moves"]
[Variant "Standard"]
[ECO "E46"]
[Opening "Nimzo-Indian Defense: Reshevsky Variation"]
[StudyName "Round 6"]
1. d4 { [%clk 1:30:57] } 1... Nf6 { [%clk 1:25:42] } 2. c4 { [%clk 1:31:21] } 2... e6 { [%clk 1:26:02] } 3. Nc3 { [%clk 1:31:44] } 3... Bb4 { [%clk 1:26:22] } 4. e3 { [%clk 1:32:07] } 4... O-O { [%clk 1:26:39] } 5. Ne2 { [%clk 1:32:13] } 5... Re8 { [%clk 1:26:57] } 6. a3 { [%clk 1:32:25] } 6... Bf8 { [%clk 1:27:18] } 7. e4 { [%clk 1:32:16] } 7... d5 { [%clk 1:27:37] } 8. e5 { [%clk 1:32:38] } 8... Nfd7 { [%clk 1:27:59] } 9. h4 { [%clk 1:32:49] } 9... c5 { [%clk 1:28:19] } 10. Bg5 { [%clk 1:30:00] } 10... Qb6 { [%clk 1:28:39] } 11. cxd5 { [%clk 1:27:27] } 11... cxd4 { [%clk 1:29:02] } 12. Nxd4 { [%clk 1:10:29] } 12... exd5 { [%clk 1:29:21] } 13. Be2 { [%clk 0:58:31] } 13... Nxe5 { [%clk 1:29:30] } 14. Nxd5 { [%clk 0:48:55] } 14... Qc5 { [%clk 1:29:51] } 15. Nb5 { [%clk 0:41:45] } 15... Bg4 { [%clk 1:21:23] } 16. Ne3 { [%clk 0:16:38] } 16... Bxe2 { [%clk 1:20:09] } 17. Qxe2 { [%clk 0:17:04] } 17... a6 { [%clk 1:15:06] } 18. Nc3 { [%clk 0:17:04] } 18... Nbc6 { [%clk 1:15:27] } 19. O-O { [%clk 0:14:12] } 19... h6 { [%clk 1:10:42] } 20. Bxh6 { [%clk 0:08:41] } 20... Nd4 { [%clk 1:07:10] } 21. Qd1 { [%clk 0:07:52] } 21... Rad8 { [%clk 1:05:01] } 22. Ned5 { [%clk 0:03:00] } 22... Rxd5 { [%clk 1:02:16] } 23. Nxd5 { [%clk 0:03:27] } 23... Qxd5 { [%clk 1:02:38] } 24. Be3 { [%clk 0:03:38] } 24... Nef3+ { [%clk 0:56:50] } 25. Kh1 { [%clk 0:03:36] } 25... Qe4 { [%clk 0:52:48] } 26. gxf3 { [%clk 0:01:22] } 26... Nxf3 { [%clk 0:53:10] } 27. Qd7 { [%clk 0:30:00] } 27... Ne5+ { [%clk 1:23:07] } 0-1

[Event "Reykjavik Open 2025"]
[Site "Reykjavik, Iceland"]
[Date "2025.04.13"]
[Round "6.33"]
[White "Benavente, Christian"]
[Black "Petersen, Marcel"]
[Result "0-1"]
[WhiteElo "1938"]
[WhiteFideId "1636928"]
[BlackElo "2185"]
[BlackFideId "12935670"]
[TimeControl "90+30 +30 after 40 moves"]
[Variant "Standard"]
[ECO "D02"]
[Opening "Queen's Pawn Game: Symmetrical Variation"]
[StudyName "Round 6"]
1. d4 { [%clk 1:30:58] } 1... Nf6 { [%clk 1:30:54] } 2. Nf3 { [%clk 1:26:34] } 2... d5 { [%clk 1:31:10] } 3. c4 { [%clk 1:26:34] } 3... e6 { [%clk 1:31:01] } 4. Bf4 { [%clk 1:24:00] } 4... Bb4+ { [%clk 1:26:08] } 5. Nbd2 { [%clk 1:23:11] } 5... O-O { [%clk 1:25:24] } 6. e3 { [%clk 1:22:51] } 6... c5 { [%clk 1:22:51] } 7. dxc5 { [%clk 1:16:57] } 7... Bxc5 { [%clk 1:22:18] } 8. Be2 { [%clk 1:13:18] } 8... Nc6 { [%clk 1:21:41] } 9. O-O { [%clk 1:12:49] } 9... b6 { [%clk 1:17:17] } 10. Qc2 { [%clk 1:07:25] } 10... Bb7 { [%clk 1:15:30] } 11. Rfd1 { [%clk 1:03:54] } 11... Qe8 { [%clk 1:12:23] } 12. a3 { [%clk 0:47:19] } 12... Rc8 { [%clk 1:10:23] } 13. Rac1 { [%clk 0:39:28] } 13... a5 { [%clk 1:01:46] } 14. cxd5 { [%clk 0:29:19] } 14... Nxd5 { [%clk 1:00:38] } 15. Ng5 { [%clk 0:23:01] } 15... f5 { [%clk 0:59:10] } 16. Ndf3 { [%clk 0:19:40] } 16... Rd8 { [%clk 0:47:44] } 17. Nxe6 { [%clk 0:10:56] } 17... Qxe6 { [%clk 0:47:50] } 18. Ng5 { [%clk 0:11:21] } 18... Qg6 { [%clk 0:46:41] } 19. Qb3 { [%clk 0:10:19] } 19... Ne7 { [%clk 0:45:37] } 20. Rxc5 { [%clk 0:08:03] } 20... bxc5 { [%clk 0:46:00] } 21. Qxb7 { [%clk 0:08:14] } 21... Nxf4 { [%clk 0:38:36] } 22. exf4 { [%clk 0:04:11] } 22... Rxd1+ { [%clk 0:33:52] } 23. Bxd1 { [%clk 0:04:39] } 23... h6 { [%clk 0:34:11] } 24. Bb3+ { [%clk 0:01:59] } 24... Kh8 { [%clk 0:34:35] } 25. Nf3 { [%clk 0:01:45] } 25... Qd6 { [%clk 0:33:58] } 26. Ne5 { [%clk 0:01:31] } 26... Kh7 { [%clk 0:34:19] } 27. h4 { [%clk 0:00:56] } 27... Rb8 { [%clk 0:33:40] } 28. Qf3 { [%clk 0:01:19] } 28... Ng6 { [%clk 0:33:03] } 0-1